fUSD/lending_fUSD_20251128
["ID","MTS","AMOUNT","RATE_DAILY","PERIOD"]
[395023649,1764346246177,-250.0,0.000167,2]
[395023650,1764346246186,-500.0,0.000167,2]
[395023651,1764346246197,-200.0,0.000167,2]
[395023652,1764346246206,-250.0,0.000167,2]
[395023653,1764346246217,-500.0,0.000167,2]
[395023654,1764346246227,-250.0,0.000167,2]
[395023655,1764346246236,-500.0,0.000167,2]
[395023656,1764346246247,-250.0,0.000167,2]
[395023657,1764346246257,-250.0,0.000167,2]
[395023658,1764346246268,-250.0,0.000167,2]
[395023659,1764346246278,-151.0,0.000167,2]
[395023660,1764346246287,-250.0,0.000167,2]
[395023661,1764346246297,-250.0,0.000167,2]
[395023662,1764346246307,-250.0,0.000167,2]
[395023663,1764346246322,-250.0,0.000167,2]
[395023664,1764346246332,-250.0,0.000167,2]
[395023665,1764346246343,-250.0,0.000167,2]
[395023666,1764346246353,-250.0,0.000167,2]
[395023667,1764346246364,-250.0,0.000167,2]
[395023668,1764346246374,-250.0,0.000167,2]
[395023669,1764346246385,-250.0,0.000167,2]
[395023670,1764346246397,-151.0,0.000167,2]
[395023671,1764346246407,-250.0,0.000167,2]
[395023672,1764346246418,-250.0,0.000167,2]
[395023673,1764346246428,-332.62709138,0.00016709,2]
[395023674,1764346246438,-500.0,0.00016709,2]
[395023675,1764346246449,-500.0,0.00016709,2]
[395023676,1764346246459,-150.0,0.00016744,2]
[395023677,1764346246468,-150.0,0.00016744,2]
[395023678,1764346246478,-500.0,0.00016772,2]
[395023679,1764346246488,-500.0,0.00016772,2]
[395023680,1764346246498,-500.0,0.00016772,2]
[395023681,1764346246508,-368.83514371,0.00016772,2]
[395023682,1764346246518,-500.0,0.00016772,2]
[395023683,1764346246528,-300.0,0.00016772,2]
[395023684,1764346246538,-500.0,0.00016772,2]
[395023685,1764346246549,-501.29612082,0.00016773,2]
[395023686,1764346246559,-503.66867124,0.00016773,2]
[395023687,1764346246569,-500.0,0.00016773,2]
[395023688,1764346246578,-500.0,0.00016773,2]
[395023689,1764346246588,-250.0,0.00016816,2]
[395023690,1764346246599,-1497.82919218,0.00016827,2]
[395023691,1764346246609,-500.0,0.00016889,2]
[395023692,1764346246619,-500.0,0.00016889,2]
[395023693,1764346246629,-227.07454111,0.00016889,2]
[395023694,1764346246639,-169.87643469,0.000169,2]
[395023695,1764346246649,-408.37286099,0.000169,2]
[395023696,1764346246659,-177.45439349,0.000169,2]
[395023697,1764346246668,-231.9921206,0.00016926,2]
[395023698,1764346246684,-500.0,0.00016926,2]
[395023699,1764346246693,-500.0,0.00016926,2]
[395023700,1764346246704,-244.98417761,0.00016926,2]
[395023701,1764346246714,-35898.25710139,0.00016927,2]
[395023702,1764346254698,-4255.0,0.00016927,2]
[395023707,1764347110341,720.29,0.00013699,2]
[395023772,1764347152641,9279.72,0.000146,2]
[395023774,1764347152667,10000.01,0.000146,2]
[395023776,1764347152691,10000.01,0.000146,2]
[395023778,1764347152716,10000.01,0.000146,2]
[395023780,1764347152740,10000.01,0.000146,2]
[395023783,1764347152764,10000.01,0.000146,2]
[395023785,1764347152788,10000.01,0.000146,2]
[395023787,1764347152811,5590.98848165,0.000146,2]
[395023841,1764347168274,4409.02151835,7.945e-05,2]
[395023842,1764347168299,1365.59141665,7.945e-05,2]
[395023843,1764347171105,178.46698357,0.000146,2]
[395023844,1764347171199,307.86206475,0.000146,2]
[395023845,1764347172130,2210.97853199,0.000146,2]
[395024066,1764347302826,522.80431968,0.00025,120]
[395024272,1764347432359,-150.0,0.00015288,2]
[395024273,1764347432369,-150.0,0.00015288,2]
[395024274,1764347432378,-150.0,0.00015288,2]
[395024275,1764347432387,-150.0,0.00015288,2]
[395024276,1764347432396,-150.0,0.00015288,2]
[395024277,1764347432406,-150.0,0.00015288,2]
[395024278,1764347432415,-150.0,0.00015288,2]
[395024279,1764347432425,-188.36110433,0.00015511,2]
[395024280,1764347432435,-37.81859218,0.00015734,2]
[395024281,1764347432446,-119.46140782,0.00015734,2]
[395024282,1764347432455,-151.0,0.00015781,2]
[395024283,1764347432465,-210.0,0.00015789,2]
[395024284,1764347432474,-84.92325917,0.00015789,2]
[395024287,1764347432493,-215.07674083,0.00015789,2]
[395024289,1764347432502,-431.54343991,0.00015789,2]
[395024292,1764347432514,-407.74984699,0.00015789,2]
[395024294,1764347432525,-281.82000002,0.00015789,2]
[395024296,1764347432536,-78.88671308,0.00015789,2]
[395024298,1764347432545,-382.28690294,0.00015791,2]
[395024300,1764347432556,-1000.99,0.00015791,2]
[395024302,1764347432568,-6815.12586,0.00015791,2]
[395024305,1764347432579,-1907.38723706,0.00015791,2]
[395024307,1764347432588,-200.0,0.00015791,2]
[395024309,1764347432598,-932.61276284,0.00015836,2]
[395024312,1764347432620,-2517.98977764,0.00015836,2]
[395024314,1764347432631,-387.99745952,0.00015836,2]
[395024316,1764347432640,-4660.06,0.0001588,2]
[395024318,1764347432649,-310.88453025,0.000159,2]
[395024320,1764347432658,-999.0,0.0001592,3]
[395024322,1764347432667,-448.51,0.00015974,2]
[395024324,1764347432679,-166.66,0.00015985,2]
[395024325,1764347432688,-150.0,0.00016137,2]
[395024326,1764347432697,-267.46074303,0.00016137,2]
[395024329,1764347432706,-151.0,0.00016137,2]
[395024331,1764347432716,-300.0,0.00016137,2]
[395024332,1764347432725,-151.0,0.00016329,2]
[395024334,1764347432734,-168.0,0.00016393,2]
[395024337,1764347432744,-1019.4272672,0.00016438,2]
[395024339,1764347432755,-1838.262296,0.00016438,2]
[395024343,1764347432784,-527.69098567,0.00016438,2]
[395024346,1764347432806,-1126.55618914,0.00016438,2]
[395024350,1764347432834,-222.99326199,0.00016438,2]
[395024352,1764347432843,-171.1839205,0.00016438,2]
[395024358,1764347437733,-1721.7260795,0.00016438,2]
[395024359,1764347437743,-500.0,0.00016473,2]
[395024360,1764347437753,-500.0,0.00016499,2]
[395024361,1764347437762,-500.0,0.00016499,2]
[395024362,1764347437772,-500.0,0.00016499,2]
[395024363,1764347437781,-500.0,0.00016499,2]
[395024364,1764347437791,-513.00826972,0.00016499,2]
[395024365,1764347437801,-500.0,0.00016499,2]
[395024366,1764347437810,-500.0,0.00016499,2]
[395024367,1764347437820,-500.0,0.00016499,2]
[395024368,1764347437829,-500.0,0.00016499,2]
[395024369,1764347437838,-601.5,0.00016499,2]
[395024370,1764347437848,-500.0,0.00016499,2]
[395024371,1764347437858,-500.0,0.00016499,2]
[395024372,1764347437868,-500.0,0.00016499,2]
[395024373,1764347437877,-598.36195248,0.00016499,2]
[395024374,1764347437886,-1504.8317,0.000165,2]
[395024375,1764347437896,-7759.6863,0.000165,2]
[395024376,1764347437905,-2500.0,0.000165,2]
[395024377,1764347437915,-3892.5,0.000165,2]
[395024378,1764347437925,-5375.19769836,0.000165,2]
[395024379,1764347437977,-785.31128072,0.000165,2]
[395024465,1764347440110,-532.00000002,0.000165,2]
[395024504,1764347443639,-419.2394,0.000165,2]
[395024505,1764347443703,-65202.33391005,0.000165,2]
[395024506,1764347443718,-2946.27702879,0.0001651,2]
[395024507,1764347443728,-166.66,0.00016512,2]
[395024508,1764347443738,-877.15026966,0.00016561,2]
[395024509,1764347443749,-500.0,0.00016573,2]
[395024510,1764347443759,-500.0,0.00016573,2]
[395024511,1764347444189,-500.0,0.00016573,2]
[395024514,1764347444220,-499.43088055,0.00016573,2]
[395024516,1764347444230,-500.0,0.00016573,2]
[395024517,1764347444240,-503.40492699,0.00016573,2]
[395024518,1764347444249,-200.0,0.0001659,2]
[395024519,1764347444259,-200.0,0.0001659,2]
[395024520,1764347444269,-500.0,0.0001659,2]
[395024521,1764347444279,-151.0,0.0001659,2]
[395024522,1764347444288,-151.0,0.0001659,2]
[395024523,1764347444298,-151.0,0.0001659,2]
[395024524,1764347444311,-500.0,0.0001659,2]
[395024525,1764347444321,-151.0,0.0001659,2]
[395024526,1764347444330,-151.0,0.0001659,2]
[395024527,1764347444340,-151.0,0.0001659,2]
[395024528,1764347444349,-151.0,0.0001659,2]
[395024529,1764347444359,-151.0,0.0001659,2]
[395024530,1764347444368,-151.0,0.0001659,2]
[395024531,1764347444378,-500.0,0.0001659,2]
[395024532,1764347444387,-553.64373807,0.0001659,2]
[395024533,1764347444396,-151.0,0.0001659,2]
[395024534,1764347444406,-500.0,0.0001659,2]
[395024535,1764347444415,-160.0,0.0001659,2]
[395024536,1764347444425,-151.0,0.0001659,2]
[395024537,1764347444436,-151.0,0.0001659,2]
[395024538,1764347444445,-500.0,0.0001659,2]
[395024539,1764347444454,-151.0,0.0001659,2]
[395024540,1764347444464,-500.0,0.0001659,2]
[395024541,1764347444473,-151.0,0.0001659,2]
[395024542,1764347444483,-151.0,0.0001659,2]
[395024543,1764347444492,-500.0,0.0001659,2]
[395024544,1764347444502,-151.0,0.0001659,2]
[395024545,1764347444514,-151.0,0.0001659,2]
[395024546,1764347444523,-500.0,0.0001659,2]
[395024547,1764347444533,-151.0,0.0001659,2]
[395024548,1764347444542,-151.0,0.0001659,2]
[395024549,1764347444552,-500.0,0.0001659,2]
[395024550,1764347444561,-151.0,0.0001659,2]
[395024551,1764347444572,-151.0,0.0001659,2]
[395024552,1764347444582,-500.0,0.0001659,2]
[395024553,1764347444592,-151.0,0.0001659,2]
[395024554,1764347444601,-151.0,0.0001659,2]
[395024555,1764347444611,-500.0,0.0001659,2]
[395024556,1764347444621,-500.0,0.0001659,2]
[395024557,1764347444631,-151.0,0.0001659,2]
[395024558,1764347444641,-500.0,0.0001659,2]
[395024559,1764347444650,-500.0,0.0001659,2]
[395024560,1764347444660,-500.0,0.0001659,2]
[395024561,1764347444670,-151.0,0.0001659,2]
[395024562,1764347444679,-500.0,0.0001659,2]
[395024563,1764347444695,-500.0,0.0001659,2]
[395024564,1764347444705,-500.0,0.0001659,2]
[395024565,1764347444717,-500.0,0.0001659,2]
[395024566,1764347444727,-500.0,0.0001659,2]
[395024567,1764347444736,-500.0,0.0001659,2]
[395024568,1764347444746,-500.0,0.0001659,2]
[395024569,1764347444756,-500.0,0.0001659,2]
[395024570,1764347444766,-151.0,0.0001659,2]
[395024571,1764347444776,-500.0,0.0001659,2]
[395024572,1764347444787,-151.0,0.0001659,2]
[395024573,1764347444796,-500.0,0.0001659,2]
[395024574,1764347444805,-500.0,0.0001659,2]
[395024575,1764347444815,-250.0,0.0001659,2]
[395024576,1764347444826,-500.0,0.0001659,2]
[395024577,1764347444835,-280.57124589,0.0001659,2]
[395024578,1764347444866,-219.42875411,0.0001659,2]
[395024579,1764347444876,-250.0,0.0001659,2]
[395024580,1764347444885,-500.0,0.0001659,2]
[395024581,1764347444896,-500.0,0.0001659,2]
[395024582,1764347444905,-250.0,0.0001659,2]
[395024583,1764347444917,-500.0,0.0001659,2]
[395024584,1764347444927,-250.0,0.0001659,2]
[395024585,1764347444939,-490.44520085,0.0001659,2]
[395024624,1764347445984,-500.0,0.00016573,2]
[395024625,1764347445997,-9.55479915,0.0001659,2]
[395024626,1764347446009,-83.94811084,0.0001659,2]
[395024627,1764347446033,-416.05188916,0.0001659,2]
[395024628,1764347446043,-250.0,0.0001659,2]
[395024629,1764347446052,-500.0,0.0001659,2]
[395024630,1764347446062,-500.0,0.0001659,2]
[395024631,1764347446072,-250.0,0.0001659,2]
[395024632,1764347446083,-500.0,0.0001659,2]
[395024633,1764347446092,-500.0,0.0001659,2]
[395024634,1764347446101,-250.0,0.0001659,2]
[395024635,1764347446111,-500.0,0.0001659,2]
[395024636,1764347446122,-500.0,0.0001659,2]
[395024637,1764347446132,-500.0,0.0001659,2]
[395024638,1764347446142,-250.0,0.0001659,2]
[395024639,1764347446152,-58.58449952,0.0001659,2]
[395024640,1764347446171,-443.99848348,0.0001659,2]
[395024641,1764347446181,-500.0,0.0001659,2]
[395024642,1764347446192,-500.0,0.0001659,2]
[395024643,1764347446201,-250.0,0.0001659,2]
[395024644,1764347446211,-500.0,0.0001659,2]
[395024645,1764347446220,-500.0,0.0001659,2]
[395024646,1764347446230,-250.0,0.0001659,2]
[395024647,1764347446239,-250.0,0.0001659,2]
[395024648,1764347446249,-500.0,0.0001659,2]
[395024649,1764347446259,-250.0,0.0001659,2]
[395024650,1764347446268,-250.0,0.0001659,2]
[395024651,1764347446278,-500.0,0.0001659,2]
[395024652,1764347446287,-250.0,0.0001659,2]
[395024653,1764347446297,-500.0,0.0001659,2]
[395024654,1764347446306,-250.0,0.0001659,2]
[395024655,1764347446317,-500.0,0.0001659,2]
[395024656,1764347446327,-250.0,0.0001659,2]
[395024657,1764347446336,-500.0,0.0001659,2]
[395024658,1764347446346,-250.0,0.0001659,2]
[395024659,1764347446356,-500.0,0.0001659,2]
[395024660,1764347446366,-250.0,0.0001659,2]
[395024661,1764347446376,-500.0,0.0001659,2]
[395024662,1764347446386,-250.0,0.0001659,2]
[395024663,1764347446396,-500.0,0.0001659,2]
[395024664,1764347446406,-250.0,0.0001659,2]
[395024665,1764347446416,-500.0,0.0001659,2]
[395024666,1764347446426,-250.0,0.0001659,2]
[395024667,1764347446435,-500.0,0.0001659,2]
[395024668,1764347446446,-250.0,0.0001659,2]
[395024669,1764347446457,-250.0,0.0001659,2]
[395024670,1764347446467,-250.0,0.0001659,2]
[395024671,1764347446477,-250.0,0.0001659,2]
[395024672,1764347446487,-200.0,0.0001659,2]
[395024673,1764347446496,-500.0,0.0001659,2]
[395024674,1764347446506,-500.0,0.0001659,2]
[395024675,1764347446516,-500.0,0.0001659,2]
[395024676,1764347446526,-500.0,0.0001659,2]
[395024677,1764347446536,-500.0,0.0001659,2]
[395024678,1764347446546,-500.0,0.0001659,2]
[395024679,1764347446556,-500.0,0.0001659,2]
[395024680,1764347446566,-500.0,0.0001659,2]
[395024681,1764347446577,-201.93286099,0.0001659,2]
[395024683,1764347446587,-500.0,0.0001659,2]
[395024685,1764347446596,-500.0,0.0001659,2]
[395024687,1764347446606,-500.0,0.0001659,2]
[395024689,1764347446616,-500.0,0.0001659,2]
[395024691,1764347446626,-500.0,0.00016599,2]
[395024693,1764347446636,-500.0,0.00016599,2]
[395024695,1764347446645,-168.0,0.0001661,2]
[395024697,1764347446655,-284.1818,0.0001661,2]
[395024698,1764347446665,-3673.8996,0.0001661,2]
[395024699,1764347446674,-215.93072647,0.00016613,2]
[395024700,1764347446684,-11399.46441874,0.00016678,2]
[395024701,1764347446699,-151.0,0.00016685,2]
[395024702,1764347446710,-168.0,0.00016703,2]
[395024703,1764347446720,-1270.99638816,0.0001676,2]
[395024704,1764347446733,-586.73724184,0.0001676,2]
[395024705,1764347446743,-168.0,0.00016763,2]
[395024706,1764347446752,-931.66630799,0.00016782,2]
[395024707,1764347446762,-13.29444957,0.00016816,2]
[395024708,1764347870391,153.71,0.00012519,2]
[395024709,1764347999588,180.94,7.745e-05,2]
[395024718,1764348523540,164.93,0.00019178,30]
[395024805,1764348631952,-500.0,0.00015052,2]
[395024806,1764348631961,-166.66,0.00015152,2]
[395024807,1764348631970,-198.21610105,0.00015188,2]
[395024808,1764348631979,-250.0,0.00015277,2]
[395024809,1764348631989,-546.53445443,0.00015287,2]
[395024810,1764348632000,-295.88708944,0.00015287,2]
[395024811,1764348632039,-357.57845613,0.00015287,2]
[395024812,1764348632048,-300.0,0.00015287,2]
[395024813,1764348632057,-150.0,0.00015288,2]
[395024814,1764348632066,-150.0,0.00015288,2]
[395024815,1764348632075,-150.0,0.00015288,2]
[395024816,1764348632085,-150.0,0.00015288,2]
[395024817,1764348632094,-150.0,0.00015288,2]
[395024818,1764348632103,-150.0,0.00015288,2]
[395024819,1764348632112,-159.02105363,0.00015288,2]
[395024820,1764348632121,-150.0,0.00015288,2]
[395024821,1764348632131,-150.0,0.00015288,2]
[395024822,1764348632140,-200.0,0.00015303,2]
[395024823,1764348632149,-300.0,0.00015337,2]
[395024824,1764348632158,-200.0,0.00015338,2]
[395024825,1764348632167,-200.0,0.00015338,2]
[395024826,1764348632176,-151.0,0.00015338,2]
[395024827,1764348632185,-500.0,0.00015338,2]
[395024828,1764348632194,-500.0,0.00015338,2]
[395024829,1764348632203,-500.0,0.00015338,2]
[395024830,1764348632213,-500.0,0.00015338,2]
[395024831,1764348632222,-151.0,0.00015338,2]
[395024832,1764348632231,-500.0,0.00015338,2]
[395024833,1764348632241,-151.0,0.00015338,2]
[395024834,1764348632250,-500.0,0.00015338,2]
[395024835,1764348632259,-151.0,0.00015338,2]
[395024836,1764348632268,-500.0,0.00015338,2]
[395024837,1764348632277,-500.0,0.00015338,2]
[395024838,1764348632288,-151.0,0.00015338,2]
[395024839,1764348632297,-500.0,0.00015338,2]
[395024841,1764348632306,-151.0,0.00015338,2]
[395024843,1764348632315,-500.0,0.00015338,2]
[395024844,1764348632325,-500.0,0.00015338,2]
[395024845,1764348632335,-500.0,0.00015338,2]
[395024846,1764348632343,-200.0,0.00015338,2]
[395024847,1764348632353,-151.0,0.00015338,2]
[395024848,1764348632362,-151.0,0.00015338,2]
[395024849,1764348632374,-151.0,0.00015338,2]
[395024850,1764348632383,-151.0,0.00015338,2]
[395024851,1764348632392,-151.0,0.00015338,2]
[395024852,1764348632402,-151.0,0.00015338,2]
[395024853,1764348632411,-151.0,0.00015338,2]
[395024854,1764348632425,-669.34,0.00015338,2]
[395024855,1764348632435,-5484.26,0.00015347,2]
[395024856,1764348632447,-166.66,0.00015471,2]
[395024857,1764348632732,-466.83393294,0.00015612,2]
[395024858,1764348632760,-202.50606706,0.00015612,2]
[395024859,1764348632770,-150.0,0.00015712,2]
[395024860,1764348632779,-1000.0,0.00015763,2]
[395024861,1764348632791,-166.66,0.0001579,2]
[395024862,1764348632800,-150.0,0.00015854,2]
[395024863,1764348632810,-150.0,0.00015854,2]
[395024864,1764348632819,-669.34,0.00015885,2]
[395024865,1764348632828,-200.0,0.00015886,2]
[395024866,1764348632837,-151.0,0.00015886,2]
[395024867,1764348632847,-200.0,0.00015886,2]
[395024868,1764348632856,-1508.85721746,0.000159,2]
[395024869,1764348632867,-1508.85721744,0.000159,2]
[395024870,1764348632877,-374.57231549,0.000159,2]
[395024871,1764348632888,-1134.28490195,0.000159,2]
[395024872,1764348632902,-439.88,0.00015949,2]
[395024873,1764348632911,-168.0,0.00016031,2]
[395024874,1764348632921,-501.0656298,0.00016073,2]
[395024875,1764348632931,-500.0,0.00016073,2]
[395024876,1764348632941,-500.0,0.00016073,2]
[395024877,1764348632950,-294.90205391,0.00016073,2]
[395024878,1764348632959,-500.69719188,0.00016073,2]
[395024879,1764348632969,-500.0,0.00016073,2]
[395024880,1764348632978,-500.0,0.00016073,2]
[395024881,1764348632988,-162.9203721,0.00016078,2]
[395024882,1764348632997,-500.0,0.00016078,2]
[395024883,1764348633006,-151.0,0.00016078,2]
[395024884,1764348633015,-500.0,0.00016078,2]
[395024885,1764348633025,-553.64373807,0.00016078,2]
[395024886,1764348633036,-500.0,0.00016078,2]
[395024887,1764348633045,-500.0,0.00016078,2]
[395024888,1764348633055,-500.0,0.00016078,2]
[395024889,1764348633065,-500.0,0.00016078,2]
[395024890,1764348633075,-500.0,0.00016078,2]
[395024891,1764348633084,-500.0,0.00016078,2]
[395024892,1764348633094,-151.0,0.00016078,2]
[395024893,1764348633106,-500.0,0.00016078,2]
[395024894,1764348633116,-500.0,0.00016078,2]
[395024895,1764348633125,-500.0,0.00016078,2]
[395024896,1764348633134,-500.0,0.00016078,2]
[395024897,1764348633144,-250.0,0.00016078,2]
[395024898,1764348633153,-250.0,0.00016078,2]
[395024899,1764348633162,-250.0,0.00016078,2]
[395024900,1764348633171,-250.0,0.00016078,2]
[395024901,1764348633181,-250.0,0.00016078,2]
[395024902,1764348633190,-500.0,0.00016078,2]
[395024903,1764348633199,-250.0,0.00016078,2]
[395024904,1764348633208,-500.0,0.00016078,2]
[395024905,1764348633217,-250.0,0.00016078,2]
[395024906,1764348633226,-500.0,0.00016078,2]
[395024907,1764348633236,-250.0,0.00016078,2]
[395024908,1764348633245,-500.0,0.00016078,2]
[395024909,1764348633255,-250.0,0.00016078,2]
[395024910,1764348633264,-500.0,0.00016078,2]
[395024911,1764348633273,-250.0,0.00016078,2]
[395024912,1764348633283,-500.0,0.00016078,2]
[395024913,1764348633295,-250.0,0.00016078,2]
[395024914,1764348633304,-500.0,0.00016078,2]
[395024915,1764348633314,-250.0,0.00016078,2]
[395024916,1764348633323,-500.0,0.00016078,2]
[395024917,1764348633333,-500.0,0.00016078,2]
[395024918,1764348633342,-500.0,0.00016078,2]
[395024919,1764348633352,-500.0,0.00016078,2]
[395024920,1764348633361,-500.0,0.00016078,2]
[395024921,1764348633375,-500.0,0.00016078,2]
[395024922,1764348633384,-151.0,0.00016078,2]
[395024923,1764348633394,-500.0,0.00016078,2]
[395024924,1764348633405,-500.0,0.00016078,2]
[395024925,1764348633415,-500.0,0.00016078,2]
[395024926,1764348633425,-500.0,0.00016078,2]
[395024927,1764348633434,-300.0,0.00016078,2]
[395024928,1764348633444,-500.0,0.00016078,2]
[395024929,1764348633454,-500.0,0.00016078,2]
[395024930,1764348633464,-500.0,0.00016078,2]
[395024931,1764348633474,-500.0,0.00016078,2]
[395024932,1764348633483,-500.0,0.00016078,2]
[395024933,1764348633493,-500.0,0.00016078,2]
[395024934,1764348633503,-500.0,0.00016078,2]
[395024935,1764348633512,-500.0,0.00016078,2]
[395024936,1764348633522,-500.0,0.00016078,2]
[395024937,1764348633532,-500.0,0.00016078,2]
[395024938,1764348633543,-151.0,0.00016078,2]
[395024939,1764348633553,-500.0,0.00016078,2]
[395024940,1764348633563,-500.0,0.00016078,2]
[395024941,1764348633572,-151.0,0.00016078,2]
[395024942,1764348633582,-500.0,0.00016078,2]
[395024943,1764348633592,-500.0,0.00016078,2]
[395024944,1764348633602,-151.0,0.00016078,2]
[395024945,1764348633611,-500.0,0.00016078,2]
[395024946,1764348633621,-151.0,0.00016078,2]
[395024947,1764348633630,-500.0,0.00016078,2]
[395024948,1764348633639,-151.0,0.00016078,2]
[395024949,1764348633649,-500.0,0.00016078,2]
[395024950,1764348633659,-250.0,0.00016078,2]
[395024951,1764348633669,-151.0,0.00016078,2]
[395024952,1764348633678,-500.0,0.00016078,2]
[395024953,1764348633698,-151.0,0.00016078,2]
[395024954,1764348633708,-500.0,0.00016078,2]
[395024955,1764348633718,-250.0,0.00016078,2]
[395024956,1764348633727,-151.0,0.00016078,2]
[395024957,1764348633737,-250.0,0.00016078,2]
[395024958,1764348633748,-151.0,0.00016078,2]
[395024959,1764348633758,-151.0,0.00016078,2]
[395024960,1764348633768,-250.0,0.00016078,2]
[395024961,1764348633778,-151.0,0.00016078,2]
[395024962,1764348633789,-250.0,0.00016078,2]
[395024963,1764348633799,-250.0,0.00016078,2]
[395024964,1764348633809,-151.0,0.00016078,2]
[395024965,1764348633821,-250.0,0.00016078,2]
[395024966,1764348633832,-250.0,0.00016078,2]
[395024967,1764348633842,-250.0,0.00016078,2]
[395024968,1764348633852,-250.0,0.00016078,2]
[395024969,1764348633862,-250.0,0.00016078,2]
[395024970,1764348633872,-250.0,0.00016078,2]
[395024971,1764348633882,-151.0,0.00016078,2]
[395024972,1764348633892,-201.93286099,0.00016078,2]
[395024973,1764348633902,-267.46074303,0.00016078,2]
[395024974,1764348633912,-166.66,0.00016109,2]
[395024975,1764348633922,-150.0,0.00016137,2]
[395024976,1764348633931,-150.0,0.00016137,2]
[395024977,1764348633941,-150.0,0.00016137,2]
[395024978,1764348633951,-150.0,0.00016137,2]
[395024979,1764348633961,-669.34,0.00016159,2]
[395024980,1764348633971,-168.0,0.00016212,2]
[395024981,1764348633981,-168.0,0.0001623,2]
[395024982,1764348633991,-2500.0,0.000163,2]
[395024983,1764348634000,-198.21610105,0.0001632,2]
[395024984,1764348634010,-841.57790059,0.0001632,2]
[395024985,1764348634020,-168.0,0.00016333,2]
[395024986,1764348634030,-168.0,0.0001634,2]
[395024987,1764348634042,-500.0,0.00016373,2]
[395024988,1764348634052,-500.0,0.00016373,2]
[395024989,1764348634062,-500.0,0.00016373,2]
[395024990,1764348634072,-500.33790784,0.00016373,2]
[395024991,1764348634083,-500.0,0.00016373,2]
[395024992,1764348634093,-151.0,0.00016396,2]
[395024993,1764348634103,-150.04,0.00016398,2]
[395024994,1764348634115,-1000.0,0.00016399,2]
[395024995,1764348634126,-500.0,0.00016399,2]
[395024996,1764348634137,-500.0,0.00016399,2]
[395024997,1764348634147,-165.64877047,0.00016399,2]
[395024998,1764348634157,-150.0,0.00016399,2]
[395024999,1764348634168,-500.0,0.00016399,2]
[395025000,1764348634178,-150.0,0.00016399,2]
[395025001,1764348634188,-500.0,0.00016399,2]
[395025002,1764348634198,-500.0,0.00016399,2]
[395025003,1764348634208,-168.95413463,0.00016399,2]
[395025004,1764348634218,-500.0,0.00016399,2]
[395025005,1764348634228,-150.0,0.00016399,2]
[395025006,1764348634237,-500.0,0.00016399,2]
[395025007,1764348634247,-150.0,0.00016399,2]
[395025008,1764348634256,-150.0,0.00016399,2]
[395025009,1764348634266,-150.0,0.00016399,2]
[395025010,1764348634275,-150.0,0.0001642,2]
[395025011,1764348634287,-150.0,0.0001642,2]
[395025012,1764348634297,-166.66,0.00016428,2]
[395025013,1764348634306,-669.34,0.00016433,2]